bitfinex/quotes_SOLUSD_20220218
["timestamp","ask_amount","ask_price","bid_price","bid_amount"]
[1645189447499,8.64348829,94.519,94.441,29.9293]
[1645189447700,11.30610519,94.518,94.441,24.6373]
[1645189447900,134.79940519,94.517,94.441,24.6373]
[1645189448103,105.8,94.515,94.441,24.6373]
[1645189448301,105.8,94.499,94.441,24.6373]
[1645189448703,0.42932179,94.498,94.441,24.6373]
[1645189449005,5.292,94.497,94.441,24.6373]
[1645189449204,0.42932179,94.498,94.441,24.6373]
[1645189449503,5.292,94.497,94.441,24.6373]
[1645189450202,105.8,94.496,94.441,24.6373]
[1645189450404,105.8,94.489,94.425,15.6702]
[1645189452407,12.68161695,94.479,94.425,15.6702]
[1645189452607,105.8,94.478,94.42,15.8897]
[1645189452808,105.8,94.478,94.42,16.0021]
[1645189453408,15.8914,94.47,94.42,16.0021]
[1645189458613,15.8914,94.47,94.416,15.9393]
[1645189461615,15.8914,94.47,94.416,13.9393]
[1645189464919,15.8914,94.47,94.412,23.1652]
[1645189465320,5.293,94.478,94.394,5.293]
[1645189465321,105.8,94.459,94.394,5.293]
[1645189465522,105.8,94.457,94.364,15.8253]
[1645189465721,105.8,94.455,94.361,24.4437]
[1645189465921,105.8,94.449,94.365,30.08562625]
[1645189466121,105.8,94.447,94.365,30.08562625]
[1645189466324,105.8,94.445,94.362,30.08562625]
[1645189466519,5.296,94.444,94.362,30.08562625]
[1645189466923,12.68161695,94.439,94.362,30.08562625]
[1645189467123,5.296,94.438,94.362,30.08562625]
[1645189467324,15.8984,94.43,94.362,30.08562625]
[1645189467725,5.296,94.438,94.362,30.08562625]
[1645189467927,15.24,94.44,94.364,105.8]
[1645189468124,15.24,94.47,94.366,105.8]
[1645189468324,23.2836,94.477,94.366,105.8]
[1645189468524,23.2836,94.477,94.365,35.38162625]
[1645189468525,23.2836,94.477,94.368,105.8]
[1645189468726,40.22339474,94.458,94.369,5.295]
[1645189468928,40.22339474,94.458,94.37,105.8]
[1645189469126,40.22339474,94.458,94.372,105.8]
[1645189469428,24.2571,94.458,94.39,15.8929]
[1645189469628,23.2836,94.477,94.392,105.8]
[1645189469927,23.2836,94.477,94.391,29.918]
[1645189469928,5.293,94.503,94.394,169.4]
[1645189470133,15.6299,94.513,94.396,169.4]
[1645189470326,24.9735,94.514,94.395,30.0899]
[1645189470327,24.9735,94.514,94.403,63.6]
[1645189470527,14.51368957,94.512,94.404,174.693]
[1645189470727,14.51368957,94.512,94.404,190.81381986]
[1645189470929,23.7894,94.511,94.406,105.8]
[1645189471130,5.293,94.51,94.408,105.8]
[1645189471330,21.1779,94.51,94.41,15.8901]
[1645189471537,21.1779,94.51,94.411,5.293]
[1645189471730,21.1779,94.51,94.412,53.43913803]
[1645189471929,105.8,94.509,94.413,5.293]
[1645189472130,21.1779,94.51,94.413,35.37374722]
[1645189472131,105.8,94.507,94.413,35.37374722]
[1645189472429,105.8,94.505,94.413,30.08074722]
[1645189472629,105.8,94.489,94.406,5.293]
[1645189472828,105.8,94.487,94.406,5.293]
[1645189473030,105.8,94.485,94.406,5.293]
[1645189473429,2.92305678,94.484,94.407,53.29229784]
[1645189474333,15.8919,94.47,94.41,15.8912]
[1645189474530,14.51368957,94.469,94.41,15.8912]
[1645189474848,15.8919,94.47,94.41,15.8912]
[1645189479558,15.8919,94.47,94.41,56.10355302]
[1645189484667,22.9778,94.475,94.41,56.10355302]
[1645189484869,22.9778,94.475,94.411,30.07590051]
[1645189485068,22.9778,94.475,94.42,15.8893]
[1645189487485,15.8881,94.49,94.42,31.671]
[1645189487682,5.293,94.511,94.44,15.8852]
[1645189487884,28.6054,94.513,94.441,24.965]
[1645189488082,23.3134,94.513,94.441,24.965]
[1645189488481,12.72070461,94.512,94.442,42.30948776]
[1645189489484,15.8847,94.51,94.45,15.8847]
[1645189492386,15.8847,94.51,94.45,31.6705]
[1645189494701,23.3134,94.513,94.45,31.6705]
[1645189494902,23.3134,94.513,94.451,5.292]
[1645189495105,23.3134,94.513,94.46,15.8817]
[1645189495502,23.3134,94.513,94.461,53.70340302]
[1645189497302,15.8817,94.53,94.47,15.8809]
[1645189497502,15.8802,94.54,94.47,15.8809]
[1645189497804,5.29,94.539,94.471,24.7647]
[1645189498206,17.07425714,94.538,94.471,24.7647]
[1645189498402,5.29,94.537,94.471,24.7647]
[1645189500907,17.07425714,94.538,94.471,24.7647]
[1645189501908,1.4915245,94.529,94.471,24.7647]
[1645189503309,1.4915245,94.53,94.471,24.7647]
[1645189503711,1.4915245,94.529,94.471,24.7647]
[1645189504111,1.4915245,94.53,94.471,24.7647]
[1645189504513,1.4915245,94.529,94.471,24.7647]
[1645189504712,1.4915245,94.53,94.48,15.8797]
[1645189504911,1.4915245,94.531,94.48,15.8797]
[1645189505614,1.4915245,94.531,94.481,39.82033817]
[1645189507516,5.291,94.539,94.481,39.82033817]
[1645189507517,1.4915245,94.537,94.49,15.878]
[1645189507716,23.3682,94.544,94.49,15.878]
[1645189510819,1.4915245,94.547,94.49,15.878]
[1645189511119,1.4915245,94.548,94.49,15.878]
[1645189512119,1.4915245,94.549,94.49,15.878]
[1645189512321,1.4915245,94.548,94.49,15.878]
[1645189512921,1.4915245,94.553,94.49,15.878]
[1645189513121,1.4915245,94.554,94.5,15.8747]
[1645189513420,13.52094555,94.553,94.483,5.289]
[1645189513620,1.4915245,94.551,94.482,24.1985]
[1645189513821,1.4915245,94.549,94.482,24.1985]
[1645189514020,1.4915245,94.55,94.482,24.1985]
[1645189514524,1.4915245,94.547,94.49,15.8781]
[1645189515423,1.4915245,94.545,94.49,15.8781]
[1645189515622,1.4915245,94.546,94.49,15.8781]
[1645189516334,1.4915245,94.545,94.49,15.8781]
[1645189516533,1.4915245,94.546,94.49,15.8781]
[1645189517332,1.4915245,94.544,94.49,15.8781]
[1645189518332,1.4915245,94.542,94.49,15.8781]
[1645189518535,1.4915245,94.541,94.49,15.8781]
[1645189518737,1.4915245,94.538,94.49,15.8781]
[1645189518934,1.4915245,94.537,94.49,15.8781]
[1645189519136,1.4915245,94.541,94.49,15.8781]
[1645189519334,1.4915245,94.539,94.49,15.8781]
[1645189520055,1.4915245,94.54,94.49,15.8781]
[1645189520457,1.4915245,94.539,94.49,15.8781]
[1645189520856,1.4915245,94.541,94.49,15.8781]
[1645189521055,1.4915245,94.542,94.49,15.8781]
[1645189521262,1.4915245,94.54,94.49,15.8781]
[1645189521457,1.4915245,94.541,94.49,15.8781]
[1645189521857,1.4915245,94.54,94.49,15.8781]
[1645189522262,1.4915245,94.538,94.49,15.8781]
[1645189523061,1.4915245,94.537,94.49,15.8781]
[1645189523860,1.4915245,94.536,94.49,15.8781]
[1645189524459,1.4915245,94.534,94.49,15.8781]
[1645189524861,1.4915245,94.533,94.49,15.8781]
[1645189525161,1.4915245,94.532,94.49,15.8781]
[1645189525962,1.4915245,94.529,94.49,15.8781]
[1645189526561,1.4915245,94.528,94.49,15.8781]
[1645189527062,1.4915245,94.527,94.49,15.8781]
[1645189527262,1.4915245,94.526,94.49,15.8781]
[1645189527464,1.4915245,94.525,94.49,15.8781]
[1645189527664,1.4915245,94.524,94.49,15.8781]
[1645189527864,1.4915245,94.525,94.49,15.8781]
[1645189528070,1.4915245,94.526,94.49,15.8781]
[1645189528263,1.4915245,94.525,94.49,15.8781]
[1645189529165,1.4915245,94.524,94.49,15.8781]
[1645189532367,1.4915245,94.522,94.482,24.1985]
[1645189532566,1.4915245,94.518,94.482,24.1985]
[1645189532768,1.4915245,94.517,94.482,24.1985]
[1645189532968,1.86412513,94.531,94.482,24.1985]
[1645189532969,1.4915245,94.518,94.482,24.1985]
[1645189533170,1.86412513,94.531,94.482,24.1985]
[1645189533171,1.4915245,94.517,94.482,24.1985]
[1645189533867,1.4915245,94.518,94.482,24.1985]
[1645189534067,1.4915245,94.518,94.47,15.8815]
[1645189534267,1.4915245,94.512,94.451,23.0684]
[1645189534468,1.4915245,94.511,94.451,23.0684]
[1645189534667,1.4915245,94.51,94.451,23.0684]
[1645189534871,1.4915245,94.511,94.46,15.8833]
[1645189535269,1.4915245,94.51,94.46,15.8833]
[1645189535470,1.4915245,94.507,94.46,15.8833]
[1645189535772,1.4915245,94.506,94.46,15.8833]
[1645189536168,1.4915245,94.508,94.46,15.8833]
[1645189536769,1.4915245,94.507,94.46,15.8833]
[1645189537372,24.0622,94.511,94.46,15.8833]
[1645189540577,1.4915245,94.517,94.46,21.1743]
[1645189540777,1.4915245,94.519,94.46,21.1743]
[1645189541577,1.4915245,94.521,94.46,21.1743]
[1645189541877,1.4915245,94.522,94.46,21.1743]
[1645189542678,1.4915245,94.523,94.46,21.1743]
[1645189543078,1.4915245,94.524,94.46,21.1743]
[1645189543381,12.23430952,94.547,94.46,21.1743]
[1645189543382,1.4915245,94.525,94.46,21.1743]
[1645189543581,1.4915245,94.525,94.461,30.06000511]
[1645189543878,1.4915245,94.528,94.48,15.8786]
[1645189544078,1.4915245,94.53,94.481,23.3689]
[1645189544280,1.4915245,94.531,94.481,23.3689]
[1645189544679,1.4915245,94.531,94.49,15.8779]
[1645189545079,1.4915245,94.536,94.49,15.8779]
[1645189545779,1.4915245,94.536,94.491,40.63927493]
[1645189545979,1.4915245,94.535,94.491,40.63927493]
[1645189546182,1.4915245,94.535,94.49,15.8779]
[1645189546580,1.4915245,94.533,94.49,15.8779]
[1645189546982,1.4915245,94.533,94.481,23.3689]
[1645189547182,1.4915245,94.527,94.481,23.3689]
[1645189547582,1.4915245,94.526,94.481,23.3689]
[1645189547982,1.4915245,94.525,94.481,23.3689]
[1645189548384,1.4915245,94.526,94.481,23.3689]
[1645189548592,1.4915245,94.525,94.481,23.3689]
[1645189549585,1.4915245,94.526,94.481,23.3689]
[1645189549787,1.4915245,94.527,94.481,23.3689]
[1645189549987,5.29,94.544,94.481,23.3689]
[1645189549988,1.4915245,94.525,94.481,23.3689]
[1645189550188,1.4915245,94.526,94.481,23.3689]
[1645189550587,1.4915245,94.525,94.481,23.3689]
[1645189550791,1.4915245,94.526,94.481,23.3689]
[1645189551189,1.4915245,94.525,94.481,23.3689]
[1645189551392,1.4915245,94.526,94.481,23.3689]
[1645189551788,1.4915245,94.525,94.481,23.3689]
[1645189552989,1.4915245,94.522,94.481,23.3689]
[1645189553589,1.4915245,94.521,94.481,23.3689]
[1645189553792,1.4915245,94.52,94.481,23.3689]
[1645189553993,1.4915245,94.521,94.481,23.3689]
[1645189554190,1.4915245,94.52,94.481,23.3689]
[1645189554799,1.4915245,94.521,94.481,23.3689]
[1645189556794,13.95119415,94.538,94.481,23.3689]
[1645189556795,1.4915245,94.522,94.481,23.3689]
[1645189557397,1.4915245,94.521,94.481,23.3689]
[1645189557595,1.4915245,94.522,94.481,23.3689]
[1645189558796,1.4915245,94.521,94.481,23.3689]
[1645189559198,1.4915245,94.522,94.481,23.3689]
[1645189559597,1.4915245,94.521,94.481,23.3689]
[1645189559797,1.4915245,94.522,94.481,23.3689]
[1645189560097,1.4915245,94.521,94.481,23.3689]
[1645189560497,1.4915245,94.518,94.481,23.3689]
[1645189560698,1.4915245,94.521,94.481,23.3689]
[1645189560898,1.4915245,94.522,94.481,23.3689]
[1645189561332,1.4915245,94.521,94.481,23.3689]
[1645189561531,1.4915245,94.517,94.481,23.3689]
[1645189561732,1.4915245,94.521,94.481,23.3689]
[1645189562030,105.8,94.527,94.481,23.3689]
[1645189562031,1.4915245,94.519,94.481,23.3689]
[1645189562230,1.4915245,94.516,94.481,23.3689]
[1645189562433,1.4915245,94.513,94.472,52.39139952]
[1645189562833,1.4915245,94.515,94.472,52.39139952]
[1645189563033,1.4915245,94.517,94.472,52.39139952]
[1645189563733,1.4915245,94.517,94.464,24.9928]
[1645189563934,1.4915245,94.516,94.464,24.9928]
[1645189564135,1.4915245,94.515,94.464,24.9928]
[1645189564737,1.4915245,94.515,94.465,51.17961262]
[1645189565137,1.4915245,94.514,94.465,51.17961262]
[1645189565534,1.4915245,94.515,94.465,51.17961262]
[1645189567942,1.4915245,94.514,94.465,51.17961262]
[1645189569340,1.4915245,94.513,94.465,51.17961262]
[1645189570142,1.4915245,94.513,94.47,15.8813]
[1645189570344,1.4915245,94.524,94.471,5.291]
[1645189570642,15.24,94.55,94.472,30.06274502]
[1645189570643,1.4915245,94.528,94.472,30.06274502]
[1645189571042,1.4915245,94.527,94.472,30.06274502]
[1645189571244,1.4915245,94.527,94.48,15.8785]
[1645189571444,1.4915245,94.527,94.48,22.7185]
[1645189571643,1.4915245,94.527,94.481,5.29]
[1645189571844,1.4915245,94.535,94.481,37.98212812]
[1645189572047,1.4915245,94.536,94.482,24.8328]
[1645189572271,1.4915245,94.536,94.483,5.29]
[1645189572445,26.1461245,94.537,94.483,5.29]
[1645189572646,26.1461245,94.537,94.484,30.06274502]
[1645189572945,26.1461245,94.537,94.485,5.29]
[1645189573145,1.4915245,94.537,94.485,5.29]
[1645189573346,1.4915245,94.535,94.49,15.8765]
[1645189573945,1.4915245,94.534,94.49,15.8765]
[1645189574146,1.4915245,94.535,94.49,15.8765]
[1645189574346,1.4915245,94.534,94.49,15.8765]
[1645189574548,1.4915245,94.535,94.49,15.8765]
[1645189574747,1.4915245,94.535,94.483,5.29]
[1645189574748,1.4915245,94.535,94.5,15.8765]
[1645189574947,1.4915245,94.537,94.501,44.03867521]
[1645189575448,1.4915245,94.536,94.501,44.03867521]
[1645189576548,23.5597,94.548,94.501,44.03867521]
[1645189576549,1.4915245,94.537,94.501,44.03867521]
[1645189576950,1.4915245,94.538,94.483,5.29]
[1645189577152,1.4915245,94.527,94.483,5.29]
[1645189577353,1.4915245,94.519,94.482,24.8328]
[1645189577554,1.4915245,94.518,94.482,24.8328]
[1645189577949,1.4915245,94.517,94.482,24.8328]
[1645189579352,1.4915245,94.517,94.451,5.29]
[1645189579551,1.4915245,94.517,94.464,24.1212]
[1645189579774,1.4915245,94.515,94.464,24.1212]
[1645189579951,1.4915245,94.512,94.464,24.1212]
[1645189580356,1.4915245,94.508,94.464,24.1212]
[1645189580552,1.4915245,94.507,94.464,24.1212]
[1645189581651,1.4915245,94.506,94.464,24.1212]
[1645189581852,1.4915245,94.507,94.464,24.1212]
[1645189582052,1.4915245,94.508,94.464,24.1212]
[1645189582652,1.4915245,94.51,94.464,23.6212]
[1645189582854,1.4915245,94.512,94.464,23.6212]
[1645189583053,1.4915245,94.51,94.464,23.6212]
[1645189584258,1.4915245,94.512,94.464,23.6212]
[1645189585057,1.4915245,94.511,94.464,23.6212]
[1645189585259,1.4915245,94.512,94.464,23.6212]
[1645189585555,1.4915245,94.51,94.464,23.6212]
[1645189585957,1.4915245,94.511,94.464,23.6212]
[1645189586158,1.4915245,94.508,94.464,23.6212]
[1645189586557,1.4915245,94.51,94.464,23.6212]
[1645189586757,1.4915245,94.508,94.464,23.6212]
[1645189587957,23.3122,94.518,94.464,23.6212]
[1645189587958,1.4915245,94.514,94.464,23.6212]
[1645189588458,1.4915245,94.513,94.464,23.6212]
[1645189589164,1.4915245,94.51,94.464,23.6212]
[1645189589465,1.4915245,94.512,94.464,23.6212]
[1645189589966,1.4915245,94.511,94.464,23.6212]
[1645189590766,1.4915245,94.513,94.464,23.6212]
[1645189591166,1.4915245,94.515,94.464,23.6212]
[1645189591365,1.4915245,94.514,94.464,23.6212]
[1645189591766,1.4915245,94.512,94.464,23.6212]
[1645189592368,1.4915245,94.511,94.464,23.6212]
[1645189592571,1.4915245,94.512,94.464,23.6212]
[1645189593566,1.4915245,94.512,94.47,15.8816]
[1645189593766,1.4915245,94.515,94.47,15.8816]
[1645189593966,23.3122,94.518,94.47,15.8816]
[1645189595089,23.3122,94.518,94.465,5.291]
[1645189595386,23.3122,94.518,94.464,23.6212]
[1645189595785,24.8037245,94.518,94.464,23.6212]
[1645189595987,1.4915245,94.515,94.464,23.6212]
[1645189596389,1.4915245,94.516,94.464,23.6212]
[1645189596589,1.4915245,94.515,94.464,23.6212]
[1645189598193,1.4915245,94.514,94.464,23.6212]
[1645189598792,1.4915245,94.517,94.464,23.6212]
[1645189599195,1.4915245,94.516,94.464,23.6212]
[1645189600097,1.4915245,94.515,94.464,23.6212]
[1645189600694,1.4915245,94.515,94.47,15.8816]
[1645189600895,23.3122,94.518,94.47,15.8816]
[1645189601094,24.8037245,94.518,94.47,15.8816]
[1645189602096,1.4915245,94.517,94.47,15.8816]
[1645189602600,1.4915245,94.516,94.47,15.8816]
[1645189603298,1.4915245,94.515,94.47,15.8816]
[1645189603499,1.4915245,94.511,94.47,15.8816]
[1645189603700,1.4915245,94.512,94.47,15.8816]
[1645189603901,1.4915245,94.51,94.47,15.8816]
[1645189604499,1.4915245,94.51,94.464,23.6212]
[1645189604798,1.4915245,94.508,94.464,23.6212]
[1645189606200,1.4915245,94.505,94.464,23.6212]
[1645189606602,1.4915245,94.504,94.464,23.6212]
[1645189606800,1.4915245,94.501,94.464,23.6212]
[1645189607002,1.4915245,94.5,94.464,23.6212]
[1645189608104,1.4915245,94.499,94.464,23.6212]
[1645189608304,1.4915245,94.498,94.464,23.6212]
[1645189609604,1.4915245,94.499,94.464,23.6212]
[1645189610007,1.4915245,94.502,94.464,23.6212]
[1645189610414,1.4915245,94.499,94.464,23.6212]
[1645189610613,1.4915245,94.498,94.464,23.6212]
[1645189611509,1.4915245,94.499,94.464,23.6212]
[1645189613908,1.4915245,94.5,94.464,23.6212]
[1645189614108,1.4915245,94.501,94.464,23.6212]
[1645189615208,1.4915245,94.5,94.464,23.6212]
[1645189615610,1.4915245,94.501,94.464,23.6212]
[1645189618311,105.8,94.499,94.456,49.19672551]
[1645189618512,1.4915245,94.497,94.456,49.19672551]
[1645189618711,1.4915245,94.496,94.456,49.19672551]
[1645189618911,1.4915245,94.495,94.456,49.19672551]
[1645189619113,1.4915245,94.496,94.456,49.19672551]
[1645189619312,1.4915245,94.494,94.456,49.19672551]
[1645189619512,105.8,94.499,94.456,49.19672551]
[1645189619513,1.4915245,94.495,94.456,49.19672551]
[1645189619715,1.4915245,94.497,94.456,49.19672551]
[1645189619910,1.4915245,94.498,94.456,49.19672551]
[1645189620312,1.4915245,94.498,94.457,24.5612]
[1645189620513,1.4915245,94.499,94.457,24.5612]
[1645189621518,5.292,94.517,94.457,24.5612]
[1645189621519,1.4915245,94.5,94.457,24.5612]
[1645189622617,1.4915245,94.499,94.457,24.5612]
[1645189623122,1.4915245,94.5,94.457,24.5612]
[1645189625019,1.4915245,94.499,94.457,24.5612]
[1645189625421,1.4915245,94.5,94.457,24.5612]
[1645189625820,1.4915245,94.501,94.457,24.5612]
[1645189626023,1.4915245,94.5,94.457,24.5612]
[1645189626219,1.4915245,94.501,94.457,24.5612]
[1645189626421,1.4915245,94.5,94.457,24.5612]
[1645189626620,1.4915245,94.501,94.457,24.5612]
[1645189627221,1.4915245,94.504,94.457,24.5612]
[1645189627624,1.4915245,94.502,94.457,24.5612]
[1645189628021,1.4915245,94.501,94.457,24.5612]
[1645189628223,1.4915245,94.5,94.457,24.5612]
[1645189629023,1.4915245,94.499,94.457,24.5612]
[1645189631225,1.4915245,94.498,94.457,24.5612]
[1645189631424,1.4915245,94.497,94.457,24.5612]
[1645189632131,1.4915245,94.496,94.457,24.5612]
[1645189632325,105.8,94.515,94.457,24.5612]
[1645189632326,1.4915245,94.5,94.457,24.5612]
[1645189632724,1.4915245,94.494,94.457,24.5612]
[1645189633125,1.4915245,94.493,94.457,24.5612]
[1645189633830,1.4915245,94.496,94.457,24.5612]
[1645189634327,1.4915245,94.501,94.457,24.5612]
[1645189634527,1.4915245,94.502,94.457,24.5612]
[1645189635129,23.7331,94.506,94.457,24.5612]
[1645189635130,1.4915245,94.503,94.457,24.5612]
[1645189635532,1.4915245,94.502,94.458,30.07595654]
[1645189636336,1.4915245,94.503,94.46,15.8833]
[1645189636534,1.4915245,94.508,94.461,5.292]
[1645189636732,1.4915245,94.511,94.461,35.36795654]
[1645189636937,1.4915245,94.512,94.461,35.36795654]
[1645189637136,1.4915245,94.511,94.462,30.07595654]
[1645189637336,1.4915245,94.51,94.463,5.291]
[1645189637935,1.4915245,94.51,94.464,30.07595654]
[1645189638136,1.4915245,94.511,94.465,5.291]
[1645189638339,1.4915245,94.513,94.47,15.8815]
[1645189638838,1.4915245,94.512,94.47,15.8815]
[1645189639036,1.4915245,94.512,94.471,23.5863]
[1645189639238,1.4915245,94.512,94.472,5.291]
[1645189639438,1.4915245,94.514,94.472,5.291]
[1645189639638,1.4915245,94.514,94.471,23.5863]
[1645189639838,1.4915245,94.513,94.471,23.5863]
[1645189640437,1.4915245,94.518,94.472,30.07191242]
[1645189640637,1.4915245,94.517,94.472,30.07191242]
[1645189640837,1.4915245,94.516,94.471,23.5863]
[1645189641238,1.4915245,94.518,94.471,23.5863]
[1645189641442,1.4915245,94.517,94.471,23.5863]
[1645189641637,1.4915245,94.518,94.471,39.1379]
[1645189641837,1.4915245,94.519,94.471,39.1379]
[1645189642440,1.4915245,94.513,94.471,39.1379]
[1645189642640,1.4915245,94.511,94.471,39.1379]
[1645189642939,1.4915245,94.514,94.471,39.1379]
[1645189643557,1.4915245,94.515,94.471,39.1379]
[1645189643958,1.4915245,94.514,94.471,15.5516]
[1645189644355,1.4915245,94.509,94.471,15.5516]
[1645189644954,1.4915245,94.511,94.471,15.5516]
[1645189645154,1.4915245,94.509,94.472,24.4099]
[1645189645557,1.4915245,94.51,94.471,15.5516]
[1645189646758,1.4915245,94.507,94.471,15.5516]
[1645189646959,1.4915245,94.51,94.461,24.4099]
[1645189647158,1.4915245,94.506,94.461,24.4099]
[1645189647857,1.4915245,94.505,94.461,24.4099]
[1645189648058,1.4915245,94.504,94.461,24.4099]
[1645189648658,1.4915245,94.504,94.45,15.8849]
[1645189648860,1.4915245,94.503,94.451,64.54133853]
[1645189649063,1.4915245,94.503,94.451,94.61882549]
[1645189649460,1.4915245,94.503,94.452,30.07748696]
[1645189649861,1.4915245,94.501,94.452,30.07748696]
[1645189650263,1.4915245,94.5,94.452,30.07748696]
[1645189650663,1.4915245,94.499,94.453,54.29127662]
[1645189651578,1.4915245,94.498,94.453,54.29127662]
[1645189651766,1.4915245,94.499,94.453,54.29127662]
[1645189651967,1.4915245,94.498,94.453,54.29127662]
[1645189653466,1.4915245,94.498,94.454,30.07784713]
[1645189653667,1.4915245,94.5,94.454,30.07784713]
[1645189653868,1.4915245,94.501,94.454,30.07784713]
[1645189654069,1.4915245,94.5,94.454,30.07784713]
[1645189654467,1.4915245,94.5,94.453,54.29127662]
[1645189654667,1.4915245,94.499,94.453,54.29127662]
[1645189654866,1.4915245,94.5,94.453,54.29127662]
[1645189655068,105.8,94.499,94.453,54.29127662]
[1645189655267,105.8,94.499,94.454,30.07815211]
[1645189655675,105.8,94.499,94.453,54.29127662]
[1645189655676,107.2915245,94.499,94.453,54.29127662]
[1645189657674,1.4915245,94.497,94.453,54.29127662]
[1645189658076,5.292,94.496,94.453,54.29127662]
[1645189658277,6.7835245,94.496,94.453,54.29127662]
[1645189658475,5.292,94.496,94.453,54.29127662]
[1645189660279,24.8774,94.503,94.454,5.292]
[1645189660484,24.8774,94.503,94.454,35.3683512]
[1645189660879,24.8774,94.503,94.455,30.0763512]
[1645189661780,24.8774,94.503,94.454,30.0763512]
[1645189662380,1.4915245,94.505,94.454,30.0763512]
[1645189662578,1.4915245,94.505,94.46,15.8832]
[1645189662779,1.4915245,94.513,94.461,5.291]
[1645189662979,1.4915245,94.513,94.462,24.6924]
[1645189663179,1.4915245,94.513,94.463,5.291]
[1645189663379,1.4915245,94.513,94.463,35.3673512]
[1645189663779,1.4915245,94.514,94.464,30.0763512]
[1645189663982,1.4915245,94.513,94.464,30.0763512]
[1645189664180,1.4915245,94.514,94.465,5.291]
[1645189664583,1.4915245,94.515,94.465,5.291]
[1645189664783,1.4915245,94.515,94.463,5.291]
[1645189664982,1.4915245,94.515,94.466,30.07397448]
[1645189665280,1.4915245,94.516,94.47,15.8816]
[1645189666382,1.4915245,94.519,94.47,15.8816]
[1645189666582,1.4915245,94.517,94.47,15.8816]
[1645189667482,1.4915245,94.516,94.47,15.8816]
[1645189667683,1.4915245,94.517,94.47,15.8816]
[1645189668085,1.4915245,94.517,94.463,5.291]
[1645189668283,1.4915245,94.516,94.463,5.291]
[1645189668687,1.4915245,94.516,94.464,30.07385153]
[1645189669688,1.4915245,94.519,94.464,30.07385153]
[1645189670185,1.4915245,94.517,94.464,30.07385153]
[1645189670384,1.4915245,94.516,94.464,30.07385153]
[1645189670886,1.4915245,94.517,94.464,30.07385153]
[1645189671287,1.4915245,94.516,94.464,30.07385153]
[1645189671785,1.4915245,94.516,94.47,15.8816]
[1645189674293,1.4915245,94.517,94.47,15.8816]
[1645189674691,1.4915245,94.516,94.47,15.8816]
[1645189674889,1.4915245,94.517,94.47,15.8816]
[1645189675091,1.4915245,94.517,94.471,5.291]
[1645189675291,1.4915245,94.519,94.471,5.291]
[1645189675693,1.4915245,94.52,94.471,5.291]
[1645189678311,1.4915245,94.52,94.463,5.291]
[1645189678909,1.4915245,94.52,94.464,30.07309997]
[1645189679111,1.4915245,94.52,94.465,5.291]
[1645189679710,1.4915245,94.52,94.466,30.07309997]
[1645189679913,1.4915245,94.52,94.467,5.291]
[1645189680112,1.4915245,94.52,94.47,15.8816]
[1645189680311,1.4915245,94.521,94.471,5.291]
[1645189681516,1.4915245,94.523,94.48,15.88]
[1645189681913,1.4915245,94.531,94.481,5.29]
[1645189682116,1.4915245,94.535,94.481,5.29]
[1645189682315,1.4915245,94.534,94.482,105.30302979]
[1645189682520,1.4915245,94.545,94.483,105.8]
[1645189682716,1.4915245,94.547,94.491,105.8]
[1645189682916,1.4915245,94.548,94.491,5.69]
[1645189683114,1.4915245,94.551,94.492,30.06799446]
[1645189683316,1.4915245,94.554,94.492,32.69737756]
[1645189683514,0.9915245,94.557,94.493,26.8040831]
[1645189683714,24.8768,94.577,94.493,26.8040831]
[1645189683915,24.8768,94.577,94.494,32.69737756]
[1645189684418,24.8768,94.577,94.5,15.8737]
[1645189684820,24.8768,94.577,94.501,30.06799446]
[1645189685625,24.8768,94.577,94.495,30.06799446]
[1645189685825,24.8768,94.577,94.52,15.8726]
[1645189686025,5.288,94.594,94.52,15.8726]
[1645189686026,28.6424,94.594,94.52,15.8726]
[1645189686225,28.6424,94.594,94.521,73.49821919]
[1645189686426,23.3544,94.594,94.521,73.49821919]
[1645189687427,23.3544,94.594,94.53,15.8704]
[1645189688838,5.287,94.593,94.53,15.8704]
[1645189690334,111.087,94.593,94.521,73.49821919]
[1645189690534,105.8,94.589,94.521,73.49821919]
[1645189690731,5.287,94.588,94.521,73.49821919]